Cogmind - Beta 13 @@@ ROGUE MODE // 2024.07.10 @ 21:40:09 Player: Gabriel Result: Destroyed by H-61 Shepherd with Heavy Assault Cannon Performance ------------- Evolutions (2) 1000 Regions Visited (3) 600 Robots Destroyed (50) 250 Value Destroyed (1411) 1411 Prototype IDs (1) 20 Alien Tech Used (0) 0 Bonus (0) 0 TOTAL SCORE: 3281 Bonus ------- None Cogmind --------- Core Integrity 0/550 Matter 287/300 Energy 100/100 System Corruption 4% Temperature Hot (215) Movement Core (150) Ox2 Location -8/Materials Parts ------- > --- POWER (1) -------- (None) > --- PROPULSION (4) --- (None) > --- UTILITY (3) ------ Improved Medium Armor Plating > --- WEAPON (3) ------- Katana > --- INVENTORY (5) ---- Improved Ion Engine High-capacity Storage Unit Huge Storage Unit Light Armor Plating Peak State ------------ > --- POWER ------------ Improved Ion Engine > --- PROPULSION ------- Aluminum Leg Aluminum Leg Aluminum Leg Improved Aluminum Leg > --- UTILITY ---------- Small Storage Unit Medium Matter Pod Improved Medium Armor Plating > --- WEAPON ----------- Heavy EM Pulse Gun Flak Cannon Mini Grenade Launcher > --- INVENTORY -------- Improved Ion Engine High-capacity Storage Unit Huge Storage Unit Light Armor Plating Improved Medium Armor Plating Improved Medium Armor Plating Improved Medium Armor Plating [Rating: 21] Favorites ----------- Power Ion Engine Engine Ion Engine Power Core Light Nuclear Core Propulsion Aluminum Leg Leg Aluminum Leg Utility Small Storage Unit Storage Small Storage Unit Processor Signal Interpreter Protection Light Armor Plating Weapon Heavy Assault Rifle Energy Gun Spread Laser Ballistic Gun Heavy Assault Rifle Ballistic Cannon Flak Cannon Launcher Mini Grenade Launcher Slashing Weapon Katana Build | -11 -10 -9 -8 ------- Run | Yrd Mat Mat Mat Slots Evolved 4 | . . 2 2 Power . | . . . . Propulsion 2 | . . 2 . Utility 1 | . . . 1 Weapon 1 | . . . 1 Parts Attached 54 | 6 10 23 15 Power 7 | 1 3 2 1 Engine 6 | 1 2 2 1 Core 1 | . 1 . . Reactor . | . . . . Propulsion 19 | 2 3 10 4 Treads . | . . . . Leg 19 | 2 3 10 4 Wheel . | . . . . Hover . | . . . . Flight . | . . . . Utility 15 | 1 2 8 4 Device . | . . . . Storage 9 | 1 . 7 1 Processor 1 | . 1 . . Hackware . | . . . . Protection 5 | . 1 1 3 Artifact . | . . . . Weapon 13 | 2 2 3 6 Energy Gun 3 | . 2 . 1 Energy Cannon . | . . . . Ballistic Gun 5 | 2 . 3 . Ballistic Cannon 1 | . . . 1 Launcher 3 | . . . 3 Special Weapon . | . . . . Impact Weapon . | . . . . Slashing Weapon 1 | . . . 1 Piercing Weapon . | . . . . Special Melee Weapon . | . . . . Unidentified Prototypes 1 | . . 1 . Corrupted Parts 2 | . . . 2 System Corruption 4 | . . . 4 Parts Lost 21 | . 1 3 17 Power 2 | . . . 2 Propulsion 10 | . 1 2 7 Utility 4 | . . 1 3 Weapon 5 | . . . 5 Highest Loss Streak 8 | . 1 1 8 To Critical Strikes . | . . . . Average Slot Usage (%) 94 | . 95 97 80 Engine 10 | . 10 11 7 Core 1 | . 3 . . Leg 33 | . 27 42 29 Storage 13 | . 14 10 16 Processor 1 | . 2 . . Protection 8 | . 7 10 7 Energy Gun 10 | . 16 2 5 Ballistic Gun 13 | . 10 19 6 Naked Turns 2 | . . . 2 Heaviest Build 31 | 13 19 26 31 Greatest Support 49 | 20 20 49 46 Greatest Overweight (x) 4 | . . . 4 Average Overweight (x) . | . . . . Largest Inventory Capacity 25 | 8 8 25 8 Average Capacity 7 | 7 8 8 7 Most Carried 8 | 5 8 8 8 Average Carried 6 | 1 5 7 6 Final Capacity 8 | 8 8 8 5 Final Carried 8 | 1 7 8 4 Class Distribution -------------------- 85% | Mutant 8% | Tank 5% | Scavenger-Mutant Dominant Class ---------------- Mutant | -10/Materials Mutant | -9/Materials Tank | -8/Materials Resources | -11 -10 -9 -8 ----------- Run | Yrd Mat Mat Mat Matter Collected 1427 | 264 229 738 196 Remotely . | . . . . Salvage Created 1603 | 20 646 654 283 Parts 102 | 1 42 49 10 Haulers Intercepted 3 | . 2 1 . Recyclers Shooed 7 | . 3 4 . Parts Field Recycled . | . . . . Retrieved Matter . | . . . . Parts Self-Destructed . | . . . . Prevented . | . . . . Kills | -11 -10 -9 -8 ------- Run | Yrd Mat Mat Mat Combat Hostiles Destroyed 34 | . 12 15 7 Guns 30 | . 12 15 3 Cannons 1 | . . . 1 AOE 3 | . . . 3 Classes Destroyed 9 | 1 6 2 . Worker 2 | 1 . 1 . Hauler 3 | . 2 1 . Recycler 2 | . 2 . . Operator 3 | . 2 . 1 Watcher 6 | . 3 2 1 Swarmer 7 | . 3 4 . Grunt 20 | . 9 6 5 Brawler 1 | . . 1 . Sentry 6 | . . 4 2 Best Kill Streak 4 | 1 4 4 4 Combat Bots Only 4 | . 3 4 4 Max Kills in Single Turn 2 | 1 1 1 2 Gunslinging . | . . . . Exploded 2 | . . . 2 Melee . | . . . . Uniques/NPCs Destroyed . | . . . . Combat | -11 -10 -9 -8 -------- Run | Yrd Mat Mat Mat Hostile Shots Fired 287 | . 64 107 116 Missed 82 | . 24 30 28 Damage Taken 3407 | . 630 976 1801 Core 834 | . 185 77 572 Absorbed by Shields . | . . . . Regen/Repaired (Parts) 111 | . 23 88 . Core Remaining (%) 68 | 100 26 80 . Volleys Fired 163 | 1 59 73 30 Largest 3 | 2 2 2 3 Hottest 130 | 40 130 130 98 Shots Fired 341 | 2 118 146 75 Gun 326 | 2 118 146 60 Cannon 6 | . . . 6 Launcher 9 | . . . 9 Special . | . . . . Kinetic 231 | 2 62 130 37 Thermal 72 | . 56 16 . Explosive 9 | . . . 9 Electromagnetic 29 | . . . 29 Robot Hit Streak 10 | 1 9 10 8 Robot Miss Streak 9 | 1 9 8 5 Penetration Max . | . . . . Secondary Targets 4 | . 3 1 . Max Gunslinging Chain 1 | . 1 1 . Shots Hit Robots 206 | 1 87 70 48 Core Hits 133 | 2 65 35 31 Critical Kills 1 | . . 1 . Critical Parts Destroyed 2 | . 1 1 . Critical Strikes 3 | . 1 2 . Destroy 3 | . 1 2 . Melee Attacks . | . . . . Impact . | . . . . Slashing . | . . . . Piercing . | . . . . Sneak Attacks . | . . . . Combat Hostiles . | . . . . Follow-up Attacks . | . . . . Damage Inflicted 3468 | 18 982 1079 1389 Guns 2622 | 18 961 1035 608 Cannons 120 | . . . 120 Explosions 652 | . . . 652 Melee . | . . . . Ramming 74 | . 21 44 9 Kinetic 1838 | 18 466 942 412 Thermal 588 | . 495 93 . Explosive 652 | . . . 652 Electromagnetic 316 | . . . 316 Impact . | . . . . Slashing . | . . . . Piercing . | . . . . Highest Corruption 4 | . . . 4 Average Corruption 3 | . . . 3 Corruption Purged . | . . . . Corruption Blocked . | . . . . Effects 1 | . . . 1 Heat Flow Errors 1 | . . . 1 Overload Shots . | . . . . Overflow Damage 43 | . 30 . 13 Projectiles . | . . . . Explosions 43 | . 30 . 13 Melee . | . . . . Knockbacks 3 | . . . 3 Impact . | . . . . Kinetic 3 | . . . 3 Secondary . | . . . . Self-Inflicted Damage 227 | . 183 . 44 Shots 4 | . 2 . 2 Rammed . | . . . . Targets Rammed 17 | . 3 9 5 Kicked 17 | . 3 9 5 Crushed . | . . . . Highest Temperature 551 | . 551 483 233 Average Temperature 106 | . 114 112 83 Received Heat Transfer 1146 | . 204 438 504 Effects 7 | . 3 4 . Shutdowns 1 | . 1 . . Energy Bleed 1 | . . 1 . Interference 2 | . . 2 . Matter Decay 2 | . 1 1 . Damage (minor) 1 | . 1 . . Siege Activations . | . . . . Robots Corrupted . | . . . . Combat Hostiles . | . . . . Parts Fried . | . . . . Impact Corruptions . | . . . . Robots Melted . | . . . . Combat Hostiles . | . . . . Parts Melted . | . . . . Heat Transferred 740 | . 620 120 . Parts Sabotaged . | . . . . Parts Stolen . | . . . . Parts Stripped . | . . . . Power Chain Reactions . | . . . . Alert | -11 -10 -9 -8 ------- Run | Yrd Mat Mat Mat Peak Influence 355 | 5 286 329 355 Initial 91 | . 3 39 91 Average 158 | . 144 176 198 Maximum Alert Level 1 | . 1 1 1 Low Security (%) 70 | 100 78 61 55 Level 1 29 | . 21 38 44 Level 2 . | . . . . Level 3 . | . . . . Level 4 . | . . . . Level 5 . | . . . . High Security . | . . . . Max Security . | . . . . Squads Dispatched 9 | . 3 3 3 Investigation 2 | . 1 1 . Extermination . | . . . . Reinforcement 7 | . 2 2 3 Assault . | . . . . Garrison . | . . . . Intercept . | . . . . Searches Triggered . | . . . . Construction Impeded . | . . . . Haulers Reinforced . | . . . . Active Scanning Responses . | . . . . Cargo Convoy Interrupts . | . . . . Stealth | -11 -10 -9 -8 --------- Run | Yrd Mat Mat Mat Distress Signals 2 | . 1 . 1 Communications Jammed . | . . . . Distress Signals . | . . . . Times Spotted 71 | . 20 28 23 Peak Tracking Total 9 | . 3 4 9 Tactical Retreats 6 | . 1 3 2 Traps | -11 -10 -9 -8 ------- Run | Yrd Mat Mat Mat Traps Triggered 2 | . 1 1 . Indirectly . | . . . . Trap Hack Attempts . | . . . . Triggered . | . . . . Disarmed 4 | . 4 . . Reprogrammed . | . . . . Reused . | . . . . Traps Extracted . | . . . . Installed . | . . . . Triggered 1 | . . . 1 Machines | -11 -10 -9 -8 ---------- Run | Yrd Mat Mat Mat Machines Disabled 7 | . 2 3 2 Max in Single Turn 2 | . 2 2 1 Machines Repaired . | . . . . Machines Dismantled . | . . . . Machines Sabotaged . | . . . . Overloaded Fab Kills . | . . . . Hacking | -11 -10 -9 -8 --------- Run | Yrd Mat Mat Mat Machines Accessed 11 | . 6 4 1 Terminals 7 | . 4 2 1 Fabricators . | . . . . Repair Stations 2 | . 1 1 . Recycling Units 1 | . 1 . . Scanalyzers 1 | . . 1 . Garrison Access . | . . . . Total Hacks 24 | . 13 10 1 Successful 18 | . 8 9 1 Failed 6 | . 5 1 . Catastrophic 2 | . 2 . . Database Lockouts . | . . . . Manual . | . . . . Terminals 16 | . 10 5 1 Fabricators . | . . . . Repair Stations 4 | . 2 2 . Recycling Units 1 | . 1 . . Scanalyzers 3 | . . 3 . Garrison Access . | . . . . Terminal Hacks 10 | . 5 4 1 Record 1 | . . . 1 Robot Analysis 1 | . 1 . . Emergency Access Points 2 | . 2 . . Alert Level 2 | . . 2 . Locate Traps 1 | . 1 . . Disarm Traps 1 | . 1 . . Dispatch Records 1 | . . 1 . Hauler Manifests 1 | . . 1 . Fabricator Hacks . | . . . . Repair Station Hacks 4 | . 2 2 . Scan Component 2 | . 1 1 . Repair 2 | . 1 1 . Recycling Unit Hacks 1 | . 1 . . Report Inventory 1 | . 1 . . Scanalyzer 3 | . . 3 . Insert Component 2 | . . 2 . Analyze 1 | . . 1 . Garrison Access Hacks . | . . . . Unauthorized Hacks . | . . . . Terminals . | . . . . Fabricators . | . . . . Repair Stations . | . . . . Recycling Units . | . . . . Scanalyzers . | . . . . Garrison Access . | . . . . Data Cores Recovered . | . . . . Used . | . . . . Hacking Detections 5 | . 3 2 . Full Trace Events 2 | . 2 . . Feedback Events . | . . . . Feedback Blocked . | . . . . Robot Schematics Acquired . | . . . . Robots Built . | . . . . Authchips . | . . . . Time . | . . . . Total Robot Build Rating . | . . . . Part Schematics Acquired 1 | . . 1 . Parts Built . | . . . . Authchips . | . . . . Time . | . . . . Total Part Build Rating . | . . . . Parts Repaired 2 | . 1 1 . Time 52 | . 26 26 . Parts Recycled . | . . . . Recycled Matter . | . . . . Retrieved Matter . | . . . . Retrieved Components . | . . . . Parts Scanalyzed 1 | . . 1 . Part Schematics Acquired 1 | . . 1 . Parts Damaged 1 | . . 1 . Bothacking | -11 -10 -9 -8 ------------ Run | Yrd Mat Mat Mat Used RIF Installer . | . . . . Robots Hacked . | . . . . Non-combat . | . . . . Combat . | . . . . Robot Hacks Applied . | . . . . Relay Couplers Released . | . . . . Fabnet Peak Effective % . | . . . . Robots Rewired . | . . . . Allies Hacked . | . . . . Hacks Repelled . | . . . . Allies | -11 -10 -9 -8 -------- Run | Yrd Mat Mat Mat Total Allies . | . . . . Largest Group . | . . . . Highest-Rated Group . | . . . . Highest-Rated Ally . | . . . . Total Orders . | . . . . Ally Attacks . | . . . . Total Damage . | . . . . Kills . | . . . . Allies Corrupted . | . . . . Allies Melted . | . . . . Intel | -11 -10 -9 -8 ------- Run | Yrd Mat Mat Mat Robot Analysis Total 1 | . 1 . . Derelict Logs Recovered . | . . . . Drone Launches . | . . . . Drone Recoveries . | . . . . Exploration | -11 -10 -9 -8 ------------- Run | Yrd Mat Mat Mat Turns Passed 3518 | 117 1690 1217 494 Spaces Moved 1668 | 43 627 706 292 Core 51 | 16 . . 35 Treads . | . . . . Legs 1617 | 27 627 706 257 Wheels . | . . . . Hover . | . . . . Flight . | . . . . Fastest Speed 50 | 50 120 120 50 Average Speed 119 | 93 120 120 123 Slowest Speed 250 | 120 120 120 250 Overloaded Moves . | . . . . Propulsion Burnouts . | . . . . Robots Hopped . | . . . . Cave-ins Triggered . | . . . . Exploration Rate (%) 41 | 3 79 55 27 Regions Visited 3 Branch Regions . Pre-discovered Areas . | . . . . Known Exits Taken . | . . . . Unknown Exits Taken 3 | 1 1 1 . Scrap Searched . | . . . . Spaces Dug . | . . . . Terrain Destroyed 70 | . 27 . 43 Melee . | . . . . Projectile . | . . . . AOE 70 | . 27 . 43 Terrain Rammed . | . . . . Walls Destroyed . | . . . . Machines Disabled . | . . . . Actions | -11 -10 -9 -8 --------- Run | Yrd Mat Mat Mat Total 2854 | 117 1453 926 358 Wait 897 | 63 735 94 5 Move 1665 | 42 626 705 292 Hop . | . . . . Pick Up 39 | 5 14 12 8 Fast Attach 11 | 2 2 3 4 Attach 24 | 4 5 7 8 Detach 1 | . . . 1 Swap 19 | . 3 13 3 Drop 18 | . 6 10 2 Fire 163 | 1 59 73 30 Melee . | . . . . Ram . | . . . . Kick 17 | . 3 9 5 Crush . | . . . . Escape Stasis . | . . . . Rewire . | . . . . Trap . | . . . . Miscellaneous . | . . . . Route ------- -11/Scrapyard -10/Materials (discovered 4 exits: *Mat x3 / *Min) -9/Materials (discovered 2 exits: *Mat / [*Min]) -8/Materials (discovered 2 exits: [*Fac] / [*Sto]) History --------- Turn | Location | Event 6 | -11/Scrapyard | Discovered new exit (range 14) 118 | -11/Scrapyard | Entered Materials 309 | -10/Materials | Build established: Mutant 721 | -10/Materials | Discovered new exit (range 14) 761 | -10/Materials | Discovered new exit (range 14) 804 | -10/Materials | Identified exit to Mines 859 | -10/Materials | Core integrity fell below 50% 867 | -10/Materials | Discovered new exit (range 6) 1728 | -10/Materials | Repaired Aluminum Leg 1741 | -10/Materials | Discovered new exit (range 15) 1808 | -10/Materials | Entered another Materials area 1808 | -9/Materials | Evolved 2 slots: Propulsion x2 1849 | -9/Materials | Repaired Sml. Storage Unit 2570 | -9/Materials | Discovered new exit (range 6) 3012 | -9/Materials | Discovered new exit (range 11) 3025 | -9/Materials | Entered another Materials area 3025 | -8/Materials | Evolved 2 slots: Utility x1, Weapon x1 3272 | -8/Materials | Lost 3 parts (1p1n1w) 3286 | -8/Materials | Discovered new exit (range 5) 3410 | -8/Materials | Discovered new exit (range 9) 3438 | -8/Materials | Core integrity fell below 50% 3464 | -8/Materials | Lost 8 parts (1p3n1u3w) 3510 | -8/Materials | Core integrity fell below 20% 3519 | -8/Materials | Destroyed by H-61 Shepherd with Heavy Assault Cannon Last Messages --------------- Kicked G-47 Trooper out of the way. Kicked G-47 Trooper. Penetrated by Slug. Sml. Storage Unit destroyed. Extracted 4 matter. Aluminum Leg destroyed. Acquired Katana. U-05 Engineer lays Concrete. Slug penetrates U-05 Engineer. U-05 Engineer destroyed. Acquired 4 matter. Acquired 3 matter. K-01 Serf collects debris. Knocked back. Penetrated by Slug. Knocked back. K-01 Serf collects debris. U-05 Engineer lays Concrete. U-05 Engineer builds a Wall. System corrupted: Heat flow error (+215). Map ----- +----------------------------------------------------+ | ??????????????????????????????????????? | | ??????????????????????????????????????? | | ??????????????????????????????????????? | | ??????????????????????????????????????? | | ??????????????????????????????????????? | | ??????????????????????????????????????? | | ??????????????????????????????????????? | | ??????????????????????????????????????? | | ??????????????????????????????????????? | | ??????????????????????????????????????? | | ??????????????????????????????????????? | | ??????????????????????????????????????? | | ??????????????????????????????????????? | | ??????????????????????????????????????? | | ???????????????###########????????????? | | ???????????????# #????????????? | | ???????????##### #????????????? | | ???????????# # #????????????? | | ???????????# + #????????????? | | ???????????# # #????????????? | | ???????????# # #????????????? | | ???????????#^ # #????????????? | | ???????????# # ???#######???? | | ???????##### #% # ######## #???? | | ???????# %uk g #???? | | ???????#